bitfinex/quotes_ETHUSD_20250413
["timestamp","ask_amount","ask_price","bid_price","bid_amount"]
[1744513080330,6.15764,1624.0,1623.7,6.15864]
[1744513080635,13.10675,1624.1,1623.7,6.15859]
[1744513081137,6.1582,1623.9,1623.6,0.8097]
[1744513081450,6.1577,1624.0,1623.7,6.15864]
[1744513081628,6.94941,1624.1,1623.7,12.31728]
[1744513081822,13.1069,1624.1,1623.7,6.15864]
[1744513082022,6.15769,1624.0,1623.7,6.15864]
[1744513082218,6.15769,1624.0,1623.7,7.471384]
[1744513082836,13.10702,1624.1,1623.7,7.471384]
[1744513083344,6.15779,1624.0,1623.7,1.312744]
[1744513083710,6.15779,1624.0,1623.7,7.471504]
[1744513084430,6.94926,1624.1,1623.7,7.471334]
[1744513084623,6.15778,1624.0,1623.7,1.312744]
[1744513085040,12.31565,1624.0,1623.7,1.312744]
[1744513086033,6.15778,1624.0,1623.7,7.471504]
[1744513086238,6.949,1624.2,1623.9,0.8097]
[1744513086740,6.15739,1624.1,1623.9,0.8097]
[1744513087235,6.949,1624.2,1623.9,0.8097]
[1744513087610,6.1573,1624.1,1623.8,14.4381104]
[1744513087807,6.1573,1624.1,1623.9,1.44381104]
[1744513088012,12.31478,1624.1,1623.8,8.2798504]
[1744513089011,6.15768,1624.0,1623.8,7.4701504]
[1744513089207,6.95001,1623.9,1623.5,59.79617]
[1744513089412,6.15859,1623.8,1623.5,60.3597]
[1744513089619,0.792,1623.9,1623.5,65.1449534]
[1744513089834,6.15866,1623.8,1623.5,65.1449534]
[1744513090035,6.95003,1623.9,1623.5,71.3042134]
[1744513090338,6.95003,1623.9,1623.6,6.15913]
[1744513090545,13.10682,1624.1,1623.6,6.96885]
[1744513090740,6.15771,1624.0,1623.7,6.15859]
[1744513090942,6.15771,1624.0,1623.7,6.15868]
[1744513091146,6.94931,1624.1,1623.8,6.15838]
[1744513091345,12.31407,1624.2,1623.8,6.15824]
[1744513091653,6.15691,1624.2,1623.8,12.31643]
[1744513091945,6.15691,1624.2,1623.9,2.041343]
[1744513092143,6.15691,1624.2,1623.8,12.31643]
[1744513092144,12.31401,1624.2,1623.8,6.96789]
[1744513092347,6.94852,1624.3,1623.9,6.15797]
[1744513092652,0.792,1624.3,1624.0,6.15731]
[1744513092945,6.15641,1624.4,1624.1,1.370431]
[1744513094316,6.15635,1624.4,1624.1,0.7547]
[1744513094512,6.15635,1624.4,1624.0,6.91201]
[1744513095458,12.31275,1624.4,1624.0,6.91201]
[1744513095757,6.15652,1624.3,1624.0,6.91201]
[1744513096058,0.45613846,1624.6,1624.0,6.91201]
[1744513096059,6.15501,1624.7,1624.3,6.15646]
[1744513096236,6.15501,1624.7,1624.3,6.91116]
[1744513097347,6.15539,1624.6,1624.3,6.91116]
[1744513097551,6.15501,1624.7,1624.4,6.15608]
[1744513098160,12.31028,1624.7,1624.3,8.217963]
[1744513098562,6.15501,1624.7,1624.3,14.851963]
[1744513099462,6.15501,1624.7,1624.3,14.851803]
[1744513099663,12.31024,1624.7,1624.3,14.851803]
[1744513100367,6.15501,1624.7,1624.3,14.851803]
[1744513100543,12.31022,1624.7,1624.3,14.851803]
[1744513101560,6.1555,1624.6,1624.3,7.3887]
[1744513101769,7.465202,1624.7,1624.3,7.3887]
[1744513101967,7.465202,1624.7,1624.3,13.54507]
[1744513102169,6.94663,1624.8,1624.4,6.15587]
[1744513102353,7.11912808,1624.8,1624.4,6.15587]
[1744513102558,6.15499,1624.7,1624.4,6.15587]
[1744513102731,6.15499,1624.7,1624.3,13.54518]
[1744513102930,6.15499,1624.7,1624.3,21.671681]
[1744513103170,6.15499,1624.7,1624.3,15.515201]
[1744513103468,6.15499,1624.7,1624.3,21.671471]
[1744513104272,6.15499,1624.7,1624.3,15.515171]
[1744513104459,6.15555,1624.6,1624.3,7.3887]
[1744513105248,6.15499,1624.7,1624.3,13.5451]
[1744513105758,6.15499,1624.7,1624.3,19.70145]
[1744513105957,6.15499,1624.7,1624.3,13.54505]
[1744513106974,6.32726008,1624.7,1624.3,13.54505]
[1744513107270,7.65462709,1624.7,1624.3,13.54505]
[1744513107470,6.15536,1624.6,1624.3,13.54505]
[1744513107955,12.31099,1624.6,1624.3,7.3887]
[1744513108472,12.31094,1624.6,1624.3,7.3887]
[1744513108667,6.15536,1624.6,1624.3,7.3887]
[1744513108840,6.95900494,1624.6,1624.3,6.634]
[1744513109342,6.15588,1624.5,1624.3,6.634]
[1744513109570,6.95900494,1624.6,1624.1,0.7867]
[1744513109571,6.15611,1624.4,1624.1,0.7867]
[1744513109742,6.15665,1624.3,1624.1,0.7867]
[1744513110486,6.15611,1624.4,1624.1,0.7867]
[1744513110684,7.467979,1624.4,1624.1,0.7867]
[1744513111004,6.15611,1624.4,1624.1,0.7867]
[1744513111305,6.15578,1624.5,1624.1,6.94362]
[1744513111525,6.96217,1624.6,1624.2,6.15685]
[1744513111698,6.15574,1624.5,1624.3,0.7867]
[1744513112467,6.15537,1624.6,1624.3,0.7867]
[1744513113594,12.31098,1624.6,1624.3,0.7867]
[1744513113889,6.15582,1624.5,1624.3,0.7867]
[1744513115155,6.15537,1624.6,1624.3,0.7867]
[1744513115396,16.07262,1624.7,1624.3,6.94303]
[1744513115576,16.24489008,1624.7,1624.3,6.94303]
[1744513115884,6.1554,1624.6,1624.3,6.94303]
[1744513116192,12.311,1624.6,1624.3,0.7867]
[1744513116483,6.15576,1624.5,1624.3,0.7867]
[1744513116786,6.15613,1624.4,1624.1,6.92361]
[1744513116958,6.15613,1624.4,1624.1,2.121961]
[1744513118691,6.15613,1624.4,1624.1,8.279141]
[1744513118876,6.15576,1624.5,1624.1,8.279141]
[1744513119379,12.31173,1624.5,1624.1,8.279141]
[1744513120297,6.1562,1624.4,1624.1,2.121961]
[1744513120460,0.3991883,1625.1,1624.4,0.7813]
[1744513120786,0.3991883,1625.1,1624.3,2.1667365]
[1744513120787,0.3991883,1625.1,1625.0,1.3313]
[1744513120986,0.54266119,1625.1,1625.0,1.529841]
[1744513121388,0.54266119,1625.1,1625.0,7.683681]
[1744513121611,0.54266119,1625.1,1625.0,1.529841]
[1744513121895,0.54266119,1625.1,1625.0,0.748541]
[1744513122279,0.54266119,1625.1,1624.9,6.63]
[1744513124200,6.69626119,1625.1,1624.7,6.15496]
[1744513125204,6.69626119,1625.1,1624.7,12.30971]
[1744513126103,0.54266119,1625.1,1624.8,6.15456]
[1744513126303,6.69627119,1625.1,1624.7,6.15475]
[1744513126500,6.69627119,1625.1,1624.8,0.615475]
[1744513127504,0.54266119,1625.1,1624.9,0.7522]
[1744513127719,0.54266119,1625.1,1625.0,6.95914]
[1744513127922,0.3991883,1625.1,1625.0,6.95914]
[1744513128710,0.3991883,1625.1,1625.0,7.50914]
[1744513128909,0.3991883,1625.1,1625.0,15.72113665]
[1744513129270,0.3991883,1625.1,1625.0,21.69113665]
[1744513129471,0.02,1625.4,1625.3,6.95801]
[1744513129671,0.02,1625.4,1625.3,9.1247465]
[1744513130201,0.02,1625.4,1625.3,12.6747465]
[1744513130396,0.02,1625.4,1625.3,14.55751515]
[1744513131294,0.02,1625.4,1625.3,12.39077865]
[1744513131878,0.15786845,1625.4,1625.3,12.39077865]
[1744513132078,0.02,1625.4,1625.3,12.39077865]
[1744513133307,1e-05,1625.4,1625.3,12.39077865]
[1744513133512,0.81,1626.4,1625.9,6.94141]
[1744513133678,6.14946,1626.2,1625.8,12.77781]
[1744513133880,0.79,1626.1,1625.8,12.77781]
[1744513134092,0.79,1626.1,1625.8,6.627]
[1744513134311,0.02,1626.4,1626.0,6.14988]
[1744513134488,0.02,1626.4,1626.0,12.29978]
[1744513134692,0.02,1626.4,1626.1,7.379608]
[1744513135096,0.02,1626.4,1626.1,1.229978]
[1744513135410,0.02,1626.4,1626.1,6.14963]
[1744513135616,6.85795,1626.6,1626.2,6.14914]
[1744513136024,13.00602,1626.6,1626.2,6.14914]
[1744513136317,13.00608,1626.6,1626.2,0.791]
[1744513136516,6.14576,1627.2,1626.2,0.791]
[1744513136517,0.02,1627.4,1626.7,6.14741]
[1744513136722,6.16485,1627.4,1626.8,13.56385]
[1744513136924,6.14575,1627.2,1626.8,7.417]
[1744513137124,6.14646,1627.0,1626.4,13.56517]
[1744513137420,6.760475,1627.1,1626.5,6.14791]
[1744513137908,12.906665,1627.1,1626.6,6.14756]
[1744513138107,6.14637,1627.0,1626.6,6.14756]
[1744513138308,6.14643,1627.0,1626.5,6.14814]
[1744513138519,6.14682,1626.9,1626.5,6.14814]
[1744513138697,6.1471,1626.8,1626.4,13.5653]
[1744513139292,12.29447,1626.8,1626.4,6.626]
[1744513139723,12.2945,1626.8,1626.4,6.626]
[1744513139927,6.1471,1626.8,1626.4,6.626]
[1744513140099,7.455476,1626.8,1626.4,12.77454]
[1744513140723,7.455476,1626.8,1626.4,6.626]
[1744513141111,6.14765,1626.7,1626.4,6.626]
[1744513141925,6.14829,1626.5,1626.1,12.77261]
[1744513142689,0.8088,1626.4,1625.8,13.54039]
[1744513142993,12.3,1626.1,1625.8,6.623]
[1744513143196,12.3,1626.1,1625.6,6.9181]
[1744513143393,12.3,1626.1,1625.7,0.69181]
[1744513143593,6.15012,1626.0,1625.7,0.69181]
[1744513143802,6.14892,1626.3,1625.6,0.7666]
[1744513143803,6.15073,1625.9,1625.6,0.7666]
[1744513143988,6.15009,1626.0,1625.5,60.1586]
[1744513144212,0.8088,1626.1,1625.5,60.1586]
[1744513144397,12.30199,1625.8,1625.5,59.392]
[1744513144596,6.15143,1625.7,1625.4,1.23907787]
[1744513145020,6.15189,1625.6,1625.5,0.5]
[1744513145188,6.96069,1625.6,1625.5,0.5]
[1744513145612,0.8088,1625.6,1624.9,6.15392]
[1744513145817,6.15308,1625.3,1624.9,12.77696]
[1744513146024,6.15308,1625.3,1625.0,1.277696]
[1744513146219,6.15298,1625.3,1625.0,1.277696]
[1744513146522,6.1531,1625.2,1625.0,1.277696]
[1744513146724,12.30723,1625.1,1624.9,6.623]
[1744513146904,6.15384,1625.0,1624.7,52.737]
[1744513147106,6.15384,1625.0,1624.6,12.77833]
[1744513147107,0.8088,1625.2,1624.6,6.623]
[1744513147424,6.15446,1624.9,1624.6,1.354532]
[1744513147604,6.1546,1624.8,1624.4,12.31198]
[1744513147805,6.1546,1624.8,1624.4,6.1559]
[1744513148123,6.15363,1625.1,1624.3,10.23646934]
[1744513148291,0.8088,1625.2,1624.9,6.15394]
[1744513148492,3.0,1625.5,1624.9,6.15394]
[1744513148493,6.15235,1625.4,1624.9,6.15394]
[1744513148697,6.15235,1625.4,1625.0,6.769164]
[1744513148907,12.30496,1625.4,1625.0,6.769164]
[1744513149628,12.30589,1625.3,1625.0,0.615394]
[1744513149828,6.1529,1625.3,1624.9,6.15422]
[1744513150011,6.1529,1625.3,1624.8,6.93477]
[1744513150211,6.15259,1625.4,1624.9,6.15391]
[1744513150412,6.15276,1625.3,1624.9,6.15391]
[1744513150598,6.945,1625.8,1625.3,6.15246]
[1744513150800,13.79065,1625.8,1625.3,13.0852]
[1744513151516,6.15122,1625.7,1625.3,13.0851]
[1744513151909,6.15122,1625.7,1625.3,6.93264]
[1744513152322,6.15122,1625.7,1625.3,13.08511]
[1744513152529,6.14892,1626.3,1625.8,6.15044]
[1744513152730,6.14969,1626.1,1625.7,7.6695]
[1744513152930,6.15025,1626.0,1625.7,6.848]
[1744513153711,6.15051,1625.9,1625.7,6.848]
[1744513153924,6.15083,1625.8,1625.5,0.8215]
[1744513154356,6.15051,1625.9,1625.5,6.15194]
[1744513154531,12.30123,1625.9,1625.5,8.067142]
[1744513154716,6.15051,1625.9,1625.5,1.915202]
[1744513154915,6.15051,1625.9,1625.5,8.066992]
[1744513155127,6.15051,1625.9,1625.6,0.5]
[1744513155340,6.14968,1626.1,1625.6,0.5]
[1744513155538,6.1509,1625.8,1625.6,0.5]
[1744513155759,6.1509,1625.8,1625.4,13.00008]
[1744513156238,12.30201,1625.8,1625.4,13.00008]
[1744513157714,6.15124,1625.7,1625.4,6.848]
[1744513158719,6.15081,1625.8,1625.4,6.848]
[1744513158919,6.15143,1625.7,1625.4,6.848]
[1744513159244,6.15157,1625.6,1625.4,6.848]
[1744513159749,12.3034,1625.6,1625.4,6.848]
[1744513159923,6.15195,1625.5,1625.4,6.848]
[1744513160114,6.15157,1625.6,1625.5,0.5]
[1744513160636,6.15252,1625.4,1625.0,13.00175]
[1744513161020,6.15273,1625.3,1625.0,6.848]
[1744513161838,6.15252,1625.4,1625.0,13.00183]
[1744513162046,6.15324,1625.2,1624.9,0.8002]
[1744513162550,12.3066,1625.2,1624.9,0.8002]
[1744513162752,6.15272,1625.3,1624.9,1.495675]
[1744513162921,6.15312,1625.2,1624.9,1.495675]
[1744513163323,6.15312,1625.2,1624.9,0.695475]
[1744513164454,12.3065,1625.2,1624.9,0.695475]
[1744513164658,12.3065,1625.2,1624.7,19.15776]
[1744513165155,6.15348,1625.1,1624.8,0.5]
[1744513165735,12.3072,1625.1,1624.8,0.5]
[1744513166054,6.92068,1625.1,1624.8,0.5]
[1744513166732,6.15422,1624.9,1624.8,0.5]
[1744513167667,6.769188,1624.9,1624.8,0.5]
[1744513167863,12.30974,1624.8,1624.4,13.80527]
[1744513168171,6.15487,1624.8,1624.4,13.80511]
[1744513170534,6.15487,1624.8,1624.4,13.00491]
[1744513170867,6.15501,1624.7,1624.4,13.00491]
[1744513171044,6.15501,1624.7,1624.4,14.921047]
[1744513171675,6.15575,1624.5,1624.1,25.15427]
[1744513171860,6.15552,1624.6,1624.2,6.15687]
[1744513172061,0.7672,1624.7,1624.1,13.02705]
[1744513172267,6.15615,1624.4,1624.1,13.02705]
[1744513172442,6.15684,1624.3,1624.1,0.02]
[1744513172650,6.96774,1624.3,1624.1,0.02]
[1744513172953,13.12447,1624.3,1624.1,0.02]
[1744513173142,6.96763,1624.3,1624.1,0.02]
[1744513176177,0.7674,1624.8,1624.2,0.8307]
[1744513176348,6.155,1624.7,1624.3,6.15626]
[1744513176543,6.155,1624.7,1624.3,6.854956]
[1744513176755,6.15503,1624.7,1624.3,6.855166]
[1744513176956,6.92205,1624.8,1624.4,6.15598]
[1744513177156,13.07687,1624.8,1624.4,6.15598]
[1744513177344,6.155,1624.7,1624.4,1.3011146]
[1744513177745,6.155,1624.7,1624.4,6.15607]
[1744513179172,6.15463,1624.8,1624.4,6.15607]
[1744513179173,12.30884,1624.9,1624.5,6.15538]
[1744513179374,6.15467,1624.8,1624.5,6.15538]
[1744513179557,6.15467,1624.8,1624.4,12.31216]
[1744513181577,6.15438,1624.9,1624.5,6.15556]
[1744513181794,6.15438,1624.9,1624.6,0.615556]
[1744513181998,6.15438,1624.9,1624.5,12.31116]
[1744513182899,13.09634,1625.0,1624.6,6.15536]
[1744513183111,6.15422,1624.9,1624.6,6.15536]
[1744513183989,12.30866,1624.9,1624.5,6.15556]
[1744513184198,6.15422,1624.9,1624.5,6.15556]
[1744513184491,6.15422,1624.9,1624.6,0.615556]
[1744513184684,6.15467,1624.8,1624.4,6.15609]
[1744513185089,12.30949,1624.8,1624.4,6.15609]
[1744513185386,6.15436,1624.9,1624.4,6.15599]
[1744513185573,6.15473,1624.8,1624.4,6.15599]
[1744513186180,12.30955,1624.8,1624.4,6.15599]
[1744513186373,6.15499,1624.7,1624.5,0.615599]
[1744513186969,6.15499,1624.7,1624.3,12.31279]
[1744513187170,6.15499,1624.7,1624.4,6.15608]
[1744513188906,12.31018,1624.7,1624.3,6.15636]
[1744513189095,6.15538,1624.6,1624.3,6.15636]
[1744513189504,6.15499,1624.7,1624.3,12.31265]
[1744513189707,6.15499,1624.7,1624.4,1.231265]
[1744513190421,6.15499,1624.7,1624.3,6.15629]
[1744513190618,6.15609,1624.5,1624.1,6.17712]
[1744513190819,6.15628,1624.4,1624.1,0.02]
[1744513191022,12.31178,1624.5,1624.1,6.17718]
[1744513191197,12.31178,1624.5,1624.2,0.617718]
[1744513191520,6.15617,1624.4,1624.1,6.17718]
[1744513192521,6.15617,1624.4,1624.2,2.77]
[1744513193895,6.15577,1624.5,1624.2,2.77]
[1744513194099,12.31175,1624.5,1624.2,2.77]
[1744513195017,6.15649,1624.3,1624.2,2.77]
[1744513195222,6.15627,1624.4,1624.2,2.77]
[1744513195526,12.31261,1624.4,1624.2,2.77]
[1744513195891,6.15649,1624.3,1624.2,2.77]
[1744513196094,6.15627,1624.4,1624.2,2.77]
[1744513196330,12.31267,1624.4,1624.2,2.77]
[1744513196694,6.15649,1624.3,1624.1,0.02]
[1744513197293,6.15687,1624.2,1624.1,0.02]
[1744513198499,6.97969,1624.3,1624.1,0.02]
[1744513198928,13.13646,1624.3,1624.1,0.02]
[1744513200331,6.97969,1624.3,1624.1,0.02]
[1744513201761,6.15687,1624.2,1624.1,0.02]
[1744513203217,6.97875,1624.6,1624.2,6.9315]
[1744513203445,12.31027,1624.7,1624.3,6.15632]
[1744513203616,6.15539,1624.6,1624.3,6.15632]
[1744513204216,6.15501,1624.7,1624.3,6.15632]
[1744513204217,6.15501,1624.7,1624.3,12.31267]
[1744513204416,12.31021,1624.7,1624.3,7.465077]
[1744513204911,6.1558,1624.5,1624.2,0.7749]
[1744513205125,12.31188,1624.5,1624.2,0.7749]
[1744513205651,12.31177,1624.5,1624.2,0.7749]
[1744513205826,6.1558,1624.5,1624.2,0.7749]
[1744513206349,12.31179,1624.5,1624.2,0.7749]
[1744513206554,12.31179,1624.5,1624.2,1.470112]
[1744513208053,6.1558,1624.5,1624.2,1.470112]
[1744513210252,6.1558,1624.5,1624.2,7.626922]
[1744513210953,6.1558,1624.5,1624.2,1.470112]
[1744513211155,12.3118,1624.5,1624.2,1.470112]
[1744513211551,6.1558,1624.5,1624.2,1.470112]
[1744513211927,6.1558,1624.5,1624.2,7.626932]
[1744513212127,12.31175,1624.5,1624.2,1.470112]
[1744513212349,6.1558,1624.5,1624.2,1.470112]
[1744513212756,6.15541,1624.6,1624.2,7.626722]
[1744513213060,12.31099,1624.6,1624.3,0.7626722]
[1744513213263,6.15585,1624.5,1624.3,0.7626722]
[1744513213563,6.15585,1624.5,1624.2,0.7749]
[1744513214663,6.15537,1624.6,1624.2,13.0884]
[1744513214851,6.15537,1624.6,1624.2,13.08831]
[1744513215046,6.15537,1624.6,1624.2,13.08833]
[1744513215361,6.15537,1624.6,1624.2,6.9316]
[1744513215563,6.15585,1624.5,1624.3,0.69316]
[1744513216663,12.31098,1624.6,1624.3,0.69316]
[1744513217662,6.1558,1624.5,1624.3,0.69316]
[1744513218254,12.31189,1624.5,1624.3,0.69316]
[1744513218458,12.31189,1624.5,1624.2,0.7749]
[1744513218685,6.15634,1624.4,1624.2,0.7749]
[1744513218885,6.15634,1624.4,1624.1,6.653]
[1744513219170,6.1565,1624.3,1624.1,6.653]
[1744513219465,12.31268,1624.4,1624.1,6.653]
[1744513219870,6.92926,1624.5,1624.1,14.171264]
[1744513220035,6.15615,1624.4,1624.1,14.171264]
[1744513220235,6.15615,1624.4,1624.3,0.003]
[1744513220977,6.92914,1624.5,1624.3,0.003]
[1744513221136,6.15498,1624.7,1624.3,1.421387]
[1744513221868,6.15557,1624.6,1624.3,1.421387]
[1744513222242,12.31019,1624.7,1624.3,7.577847]
[1744513222766,6.15553,1624.6,1624.3,1.421387]
[1744513225968,6.15498,1624.7,1624.4,6.15609]
[1744513226168,6.15498,1624.7,1624.5,0.615609]
[1744513226571,6.15498,1624.7,1624.6,0.8167]
[1744513226990,6.15536,1624.6,1624.5,0.615609]
[1744513227162,12.31018,1624.7,1624.4,0.8167]
[1744513227710,6.15537,1624.6,1624.4,0.8167]
[1744513227876,6.15574,1624.5,1624.3,0.618987]
[1744513228082,6.15541,1624.6,1624.3,0.003]
[1744513228408,6.15422,1624.9,1624.5,6.92276]
[1744513228565,6.15422,1624.9,1624.5,13.07834]
[1744513228764,6.15422,1624.9,1624.5,6.92276]
[1744513229016,12.30879,1624.9,1624.5,6.92276]
[1744513229161,6.15422,1624.9,1624.5,14.60282589]
[1744513229600,6.15422,1624.9,1624.5,8.44726589]
[1744513229856,6.15422,1624.9,1624.5,14.60281589]
[1744513230060,6.15389,1625.0,1624.6,6.15509]
[1744513230280,6.15389,1625.0,1624.7,6.92212]
[1744513230502,6.15367,1625.1,1624.7,14.384671]
[1744513231064,6.15367,1625.1,1624.7,8.229751]
[1744513231264,12.30737,1625.1,1624.7,8.229751]
[1744513233396,12.30448,1625.5,1625.1,0.7599]
[1744513233580,6.15233,1625.4,1625.1,0.7599]
[1744513234088,12.30499,1625.4,1625.1,0.7599]
[1744513234667,7.382448,1625.5,1625.1,0.7599]
[1744513234865,6.152,1625.5,1625.1,6.91319]
[1744513235071,6.15191,1625.6,1625.2,6.15281]
[1744513235411,6.15184,1625.6,1625.1,6.91317]
[1744513235582,6.15184,1625.6,1625.2,12.30576]
[1744513236368,9.92693,1625.7,1625.3,6.1527]
[1744513236615,9.92693,1625.7,1625.4,0.7599]
[1744513236616,9.15123,1625.7,1625.4,0.7599]
[1744513236804,15.30267,1625.7,1625.4,0.7599]
[1744513237785,6.91867,1625.6,1625.2,6.92023]
[1744513238600,6.15211,1625.5,1625.2,0.7672]
[1744513240391,6.1524,1625.4,1625.0,6.15374]
[1744513240707,6.15321,1625.2,1624.9,12.603]
[1744513240872,6.15347,1625.1,1624.8,0.7672]
[1744513241075,6.15438,1624.9,1624.6,7.3982]
[1744513241278,6.15472,1624.8,1624.6,7.3982]
[1744513241684,0.7671,1625.0,1624.4,0.7672]
[1744513241685,6.15498,1624.7,1624.4,0.7672]
[1744513241874,6.15538,1624.6,1624.4,0.7672]
[1744513242069,6.15538,1624.6,1624.3,0.003]
[1744513242070,12.31108,1624.6,1624.3,0.003]
[1744513242303,6.15574,1624.5,1624.3,0.003]
[1744513242508,6.15611,1624.4,1624.3,0.003]
[1744513243271,6.94531,1624.4,1624.3,0.003]
[1744513243500,9.94531,1624.4,1624.3,0.003]
[1744513247116,10.49531,1624.4,1624.3,1e-05]
[1744513247282,11.39521395,1624.4,1624.3,1e-05]
[1744513247684,10.84521395,1624.4,1624.3,1e-05]
[1744513248209,6.15515,1624.7,1624.3,1e-05]
[1744513248512,12.31039,1624.7,1624.4,0.7669]
[1744513248819,6.15537,1624.6,1624.4,0.7669]
[1744513249114,6.15461,1624.8,1624.4,0.7669]
[1744513249281,12.3095,1624.8,1624.4,6.92284]
[1744513249712,13.5292,1624.9,1624.5,6.15569]
[1744513249713,6.94342,1624.9,1624.5,6.15569]
[1744513249893,6.15422,1624.9,1624.5,6.15569]
[1744513250216,6.15422,1624.9,1624.5,12.31121]
[1744513250517,12.30732,1625.1,1624.7,6.15498]
[1744513250681,6.15349,1625.1,1624.7,6.15498]
[1744513250881,6.15349,1625.1,1624.7,7.386009]
[1744513251089,6.15349,1625.1,1624.8,0.7669]
[1744513251384,3.7892,1625.3,1624.9,6.15418]
[1744513251385,6.15271,1625.3,1624.9,6.15418]
[1744513251588,6.15271,1625.3,1624.9,6.15398]
[1744513251819,6.15196,1625.5,1625.0,6.15368]
[1744513252015,12.78185,1625.6,1625.3,0.7669]
[1744513252217,6.15185,1625.6,1625.3,0.7669]
[1744513252416,12.30372,1625.6,1625.3,0.7669]
[1744513253137,6.15274,1625.3,1625.0,0.7542]
[1744513253350,6.15199,1625.5,1625.0,0.7542]
[1744513253520,6.15199,1625.5,1625.0,7.64619]
[1744513253721,6.15233,1625.4,1625.0,7.64619]
[1744513254451,6.15233,1625.4,1625.0,6.90777]
[1744513254731,6.15297,1625.3,1625.0,0.7542]
[1744513254909,6.15239,1625.4,1625.0,0.7542]
[1744513255116,6.15239,1625.4,1625.0,6.90783]
[1744513255315,12.30504,1625.4,1625.0,6.90783]
[1744513255718,6.15239,1625.4,1625.0,6.90783]
[1744513255916,6.15239,1625.4,1625.0,8.877034]
[1744513258135,6.15276,1625.3,1625.0,2.723404]
[1744513258643,6.15314,1625.2,1625.0,2.723404]
[1744513258844,6.15346,1625.1,1624.8,0.7664]
[1744513259031,6.15346,1625.1,1624.9,2.77]
[1744513259623,6.15346,1625.1,1624.8,0.7664]
[1744513260241,6.15314,1625.2,1624.8,6.92082]
[1744513260452,6.15308,1625.2,1624.8,0.7664]
[1744513260659,6.15422,1624.9,1624.6,6.628]
[1744513261156,6.15387,1625.0,1624.6,12.78334]
[1744513261360,6.15387,1625.0,1624.6,18.93856]
[1744513262315,6.15387,1625.0,1624.6,12.78322]
[1744513262512,0.8037,1625.4,1624.8,0.7664]
[1744513262737,6.15235,1625.4,1625.0,6.15355]
[1744513262916,12.30495,1625.4,1625.0,6.15355]
[1744513263115,6.15195,1625.5,1625.1,6.15346]
[1744513263362,6.15195,1625.5,1625.2,1.370846]
[1744513263864,12.30415,1625.5,1625.2,1.370846]
[1744513264623,6.15234,1625.4,1625.2,1.370846]
[1744513265831,6.15303,1625.3,1624.9,13.53836]
[1744513266033,6.15206,1625.5,1625.1,6.1533]
[1744513266718,6.15206,1625.5,1625.1,12.30658]
[1744513266919,6.15206,1625.5,1625.2,1.230658]
[1744513268618,12.30423,1625.5,1625.1,6.15328]
[1744513269747,6.15234,1625.4,1625.1,6.15328]
[1744513272626,6.15234,1625.4,1625.0,12.30762]
[1744513273756,6.15399,1625.0,1624.7,1.278322]
[1744513273957,6.15237,1625.4,1624.9,6.15422]
[1744513274253,6.15237,1625.4,1625.1,0.8198]
[1744513274644,6.15237,1625.4,1625.1,6.97321]
[1744513275048,6.152,1625.5,1625.1,13.1265]
[1744513275246,6.152,1625.5,1625.1,6.97309]
[1744513275453,6.152,1625.5,1625.2,6.15302]
[1744513275829,15.30339,1625.6,1625.2,6.15302]
[1744513277132,6.15133,1625.7,1625.4,0.807]
[1744513278392,6.15086,1625.8,1625.4,6.95915]
[1744513278563,6.15086,1625.8,1625.5,6.15191]
[1744513279053,6.15046,1625.9,1625.5,6.15179]
[1744513279462,6.15009,1626.0,1625.5,6.15173]
[1744513279660,6.15009,1626.0,1625.6,6.95844]
[1744513280038,6.15097,1625.8,1625.6,0.807]
[1744513280453,6.15119,1625.7,1625.6,0.807]
[1744513280762,6.15122,1625.7,1625.4,0.807]
[1744513281067,0.615097,1625.8,1625.4,0.807]
[1744513281232,6.1517,1625.6,1625.4,0.807]
[1744513281628,6.1517,1625.6,1625.3,6.623]
[1744513281834,6.15219,1625.5,1625.3,6.623]
[1744513282167,6.15195,1625.5,1625.2,0.807]
[1744513282937,6.15237,1625.4,1625.2,0.807]
[1744513283339,6.15271,1625.3,1625.2,0.807]
[1744513283963,6.15328,1625.2,1625.0,7.45]
[1744513284445,6.15346,1625.1,1624.8,53.598]
[1744513284752,6.15346,1625.1,1624.9,2.77]
[1744513285049,6.15346,1625.1,1624.8,0.828]
[1744513285839,1.367397,1625.8,1625.3,0.828]
[1744513286047,6.15122,1625.7,1625.3,6.98051]
[1744513286353,6.15122,1625.7,1625.4,0.698051]
[1744513286700,6.15122,1625.7,1625.4,6.850361]
[1744513286848,6.15122,1625.7,1625.4,0.698051]
[1744513287042,6.90243,1626.0,1625.3,0.828]
[1744513287043,6.15193,1625.6,1625.3,0.828]
[1744513287453,6.152,1625.5,1625.3,0.828]
[1744513287859,3.0,1625.9,1625.3,0.828]
[1744513288068,6.15087,1625.8,1625.4,6.15219]
[1744513288268,6.15087,1625.8,1625.5,0.615219]
[1744513288463,6.15233,1625.4,1625.3,0.828]
[1744513288665,6.15376,1625.1,1624.8,0.7832]
[1744513288842,6.15306,1625.3,1624.9,6.15406]
[1744513289060,6.15306,1625.3,1625.0,6.93702]
[1744513289888,12.30496,1625.4,1625.0,6.93703]
[1744513290179,6.15237,1625.4,1625.0,8.245922]
[1744513290575,6.15286,1625.3,1625.0,2.092302]